Cogmind - Beta 16 @@@ ROGUE MODE // 2025.11.23 @ 21:49:02 Player: AlcoholicAardvark Result: Destroyed by as-97201 with Assembled Maul Performance ------------- Evolutions (1) 500 Regions Visited (4) 800 Robots Destroyed (22) 110 Value Destroyed (653) 653 Prototype IDs (0) 0 Alien Tech Used (0) 0 Bonus (100) 100 TOTAL SCORE: 2163 Bonus ------- Follower Combat Kills 100 Cogmind --------- Core Integrity 0/400 Matter 222/300 Energy 100/100 System Corruption 18% Temperature Cool (0) Movement Core (100) Ox1 Location -9/Mines Parts ------- > --- POWER (1) -------- (None) > --- PROPULSION (4) --- (None) > --- UTILITY (2) ------ Small Storage Unit > --- WEAPON (2) ------- (None) > --- INVENTORY (8) ---- Ion Engine Ion Engine Improved Sensor Array Improved Signal Interpreter Advanced Targeting Computer Peak State ------------ > --- POWER ------------ Ion Engine > --- PROPULSION ------- Aluminum Leg Aluminum Leg Aluminum Leg Aluminum Leg > --- UTILITY ---------- Small Storage Unit Power Shielding > --- WEAPON ----------- Small Laser Rocket Launcher > --- INVENTORY -------- Ion Engine Aluminum Leg Improved Sensor Array Improved Signal Interpreter Advanced Targeting Computer Small Laser Light Assault Rifle [Rating: 11] Favorites ----------- Power Ion Engine Engine Ion Engine Propulsion Aluminum Leg Leg Aluminum Leg Utility Small Storage Unit Storage Small Storage Unit Protection Power Shielding Weapon Small Laser Energy Gun Small Laser Ballistic Gun Light Assault Rifle Launcher Rocket Launcher Build | -11 -10 -10 -9 -9 ------- Run | Yrd Mat Min Mat Min Slots Evolved 2 | . . . 2 . Power . | . . . . . Propulsion 2 | . . . 2 . Utility . | . . . . . Weapon . | . . . . . Parts Attached 19 | 6 1 . 9 3 Power 3 | 1 . . 1 1 Engine 3 | 1 . . 1 1 Core . | . . . . . Reactor . | . . . . . Propulsion 9 | 2 . . 7 . Treads . | . . . . . Leg 9 | 2 . . 7 . Wheel . | . . . . . Hover . | . . . . . Flight . | . . . . . Utility 2 | 1 1 . . . Device . | . . . . . Storage 1 | 1 . . . . Processor . | . . . . . Hackware . | . . . . . Protection 1 | . 1 . . . Artifact . | . . . . . Weapon 5 | 2 . . 1 2 Energy Gun 3 | 2 . . . 1 Energy Cannon . | . . . . . Ballistic Gun 1 | . . . 1 . Ballistic Cannon . | . . . . . Launcher 1 | . . . . 1 Special Weapon . | . . . . . Impact Weapon . | . . . . . Slashing Weapon . | . . . . . Piercing Weapon . | . . . . . Special Melee Weapon . | . . . . . Unidentified Prototypes . | . . . . . Parts Lost 11 | . . . 1 10 Power 1 | . . . . 1 Propulsion 5 | . . . . 5 Utility 1 | . . . . 1 Weapon 4 | . . . 1 3 Highest Loss Streak 5 | . . . 1 5 To Critical Strikes . | . . . . . Average Backups 3 | . 1 3 4 6 Power . | . . . . 1 Propulsion 1 | . . 2 1 . Utility 1 | . . . 1 3 Weapon 1 | . 1 1 . 1 Tool/Special . | . . . . . Unused Backups 3 | . . . . 3 Power . | . . . . . Propulsion . | . . . . . Utility 3 | . . . . 3 Weapon . | . . . . . Tool/Special . | . . . . . Average Slot Usage (%) 94 | . 98 100 95 86 Engine 11 | . 14 14 11 10 Leg 34 | . 28 28 39 34 Storage 12 | . 14 14 11 11 Protection 11 | . 12 14 11 10 Energy Gun 19 | . 28 28 19 9 Ballistic Gun 3 | . . . 2 8 Peak Build Rating 11 | 6 7 7 10 11 Average Rating 8 | 4 6 7 8 9 On Entrance 6 | . 6 7 7 10 Avg Prop Armor Cover (%) . | . . . . . Naked Turns . | . . . . . Heaviest Build 16 | 13 14 14 14 16 Greatest Support 40 | 20 20 20 40 40 Greatest Overweight (x) 4 | 4 . . . 1 Average Overweight (x) . | . . . . . Largest Inventory Capacity 8 | 8 8 8 8 8 Average Capacity 7 | 7 8 8 8 8 Most Carried 8 | 1 3 3 8 7 Average Carried 3 | . 1 3 4 6 Final Capacity 8 | 8 8 8 8 8 Final Carried 6 | 1 3 3 6 5 Class Distribution -------------------- 77% | Mutant 22% | Scavenger-Mutant Dominant Class ---------------- Mutant | -10/Materials Mutant | -10/Mines Mutant | -9/Materials Scavenger-Mutant | -9/Mines Resources | -11 -10 -10 -9 -9 ----------- Run | Yrd Mat Min Mat Min Matter Collected 405 | 125 100 45 102 33 Remotely . | . . . . . Salvage Created 689 | . 100 . 487 102 Parts 34 | . 2 . 24 8 Haulers Intercepted . | . . . . . Recyclers Shooed . | . . . . . Parts Field Recycled . | . . . . . Retrieved Matter . | . . . . . Parts Self-Destructed . | . . . . . Prevented . | . . . . . Parts Restored . | . . . . . Kills | -11 -10 -10 -9 -9 ------- Run | Yrd Mat Min Mat Min Combat Hostiles Destroyed 26 | . 2 . 13 11 Guns 19 | . 1 . 13 5 AOE 6 | . . . . 6 Classes Destroyed 6 | . 1 . 2 3 Worker 1 | . . . . 1 Swarmer 7 | . . . 3 4 Grunt 10 | . 2 . 8 . Sentry 2 | . . . 2 . Demolisher 2 | . . . . 2 Assembled 5 | . . . . 5 Best Kill Streak 5 | . 2 . 5 5 Combat Bots Only 5 | . 2 . 5 4 Max Kills in Single Turn 2 | . 1 . 1 2 Gunslinging . | . . . . . Exploded 2 | . . . . 2 Melee . | . . . . . Uniques/NPCs Destroyed . | . . . . . Combat | -11 -10 -10 -9 -9 -------- Run | Yrd Mat Min Mat Min Hostile Shots Fired 141 | . 16 . 58 67 Missed 41 | . 5 . 17 19 Hits 100 | . 11 . 41 48 Melee 10 | . . . . 10 Projectile 90 | . 11 . 41 38 AOE 10 | . . . . 10 Critical Strikes 2 | . 1 . 1 . Part Disruptions 1 | . . . . 1 Damage Taken 1696 | . 142 . 525 1029 Core 425 | . 10 . 128 287 Absorbed by Shields . | . . . . . Redirected to Shielding 43 | . 4 . 11 28 Core Remaining (%) 98 | 100 . 96 . . Volleys Fired 80 | . 9 . 46 25 Largest 2 | . 2 . 2 2 Hottest 90 | . 90 . 90 73 Shots Fired 150 | . 18 . 92 40 Gun 138 | . 18 . 92 28 Cannon . | . . . . . Launcher 12 | . . . . 12 Special . | . . . . . Kinetic 27 | . . . 12 15 Thermal 111 | . 18 . 80 13 Explosive 12 | . . . . 12 Electromagnetic . | . . . . . Robot Hit Streak 14 | . 11 . 14 5 Robot Miss Streak 3 | . 1 . 3 3 Penetration Max . | . . . . . Secondary Targets 2 | . . . 1 1 Max Gunslinging Chain 1 | . . . 1 1 Shots Hit Robots 99 | . 14 . 66 19 Core Hits 50 | . 4 . 27 19 Critical Kills . | . . . . . Critical Parts Destroyed . | . . . . . Critical Strikes 5 | . 1 . 4 . Burn 5 | . 1 . 4 . Melee Attacks . | . . . . . Impact . | . . . . . Slashing . | . . . . . Piercing . | . . . . . Sneak Attacks . | . . . . . Combat Hostiles . | . . . . . Follow-up Attacks . | . . . . . Damage Inflicted 1479 | . 168 . 726 585 Guns 1020 | . 168 . 726 126 Cannons . | . . . . . Explosions 435 | . . . . 435 Melee . | . . . . . Ramming 24 | . . . . 24 Kinetic 130 | . . . 71 59 Thermal 890 | . 168 . 655 67 Explosive 435 | . . . . 435 Electromagnetic . | . . . . . Impact . | . . . . . Slashing . | . . . . . Piercing . | . . . . . Highest Corruption 18 | . . . . 18 Average Corruption 14 | . . . . 14 Corruption Purged . | . . . . . Corruption Blocked . | . . . . . Effects 1 | . . . . 1 Message Errors 1 | . . . . 1 Overload Shots . | . . . . . Overflow Damage 1 | . . . . 1 Projectiles . | . . . . . Explosions 1 | . . . . 1 Melee . | . . . . . Knockbacks . | . . . . . Impact . | . . . . . Kinetic . | . . . . . Secondary . | . . . . . Self-Inflicted Damage 53 | . . . . 53 Shots 1 | . . . . 1 Rammed 4 | . . . . 4 Targets Rammed 10 | . . . . 10 Kicked 6 | . . . . 6 Crushed . | . . . . . Highest Temperature 345 | . 345 . 162 28 Average Temperature 73 | . 181 . 60 8 Received Heat Transfer 316 | . 99 . 177 40 Effects 1 | . 1 . . . Energy Bleed 1 | . 1 . . . Siege Activations . | . . . . . Martial Activations . | . . . . . Shielding Activations . | . . . . . Robots Disrupted . | . . . . . Combat Hostiles . | . . . . . Robots Corrupted . | . . . . . Combat Hostiles . | . . . . . Parts Fried . | . . . . . Impact Corruptions . | . . . . . Robots Melted 1 | . 1 . . . Combat Hostiles 1 | . 1 . . . Parts Melted 5 | . 2 . 3 . Heat Transferred 2642 | . 520 . 1972 150 Parts Sabotaged . | . . . . . Parts Stolen . | . . . . . Parts Stripped . | . . . . . Power Chain Reactions . | . . . . . Alert | -11 -10 -10 -9 -9 ------- Run | Yrd Mat Min Mat Min Maximum Alert Level 1 | . . . 1 . Low Security (%) 90 | 100 100 100 76 100 Level 1 9 | . . . 23 . Level 2 . | . . . . . Level 3 . | . . . . . Level 4 . | . . . . . Level 5 . | . . . . . High Security . | . . . . . Max Security . | . . . . . Peak Influence 264 | . 60 15 264 177 Initial 87 | . . 15 . 87 Average 85 | . 12 2 142 110 Influence Increases 748 | . 80 . 476 192 Destroy 0b10 Robot/C 500 | . 40 . 340 120 Destroy 0b10 Robot/NC 5 | . . . . 5 Destroy Leader 110 | . 10 . 80 20 Allied During Kill 11 | . . . 11 . Disable Machine 30 | . . . 30 . Destroy Structure 47 | . . . . 47 Lose Combat Pursuer 45 | . 30 . 15 . Influence Decreases 729 | . 40 40 252 397 Entered New Map 162 | . . 25 . 137 Time Decay 437 | . 40 15 222 160 Lost Part 110 | . . . 10 100 Lost Ally 20 | . . . 20 . Squads Dispatched 3 | . 1 . 2 . Investigation . | . . . . . Extermination . | . . . . . Reinforcement 3 | . 1 . 2 . Assault . | . . . . . Garrison . | . . . . . Intercept . | . . . . . Searches Triggered . | . . . . . Construction Impeded . | . . . . . Haulers Reinforced . | . . . . . Active Scanning Responses . | . . . . . Cargo Convoy Interrupts . | . . . . . Stealth | -11 -10 -10 -9 -9 --------- Run | Yrd Mat Min Mat Min Distress Signals 4 | . . . 4 . Communications Jammed . | . . . . . Distress Signals . | . . . . . Times Spotted 56 | . 9 . 27 20 Peak Tracking Total 11 | . 4 . 7 11 Tactical Retreats 2 | . 1 . 1 . Traps | -11 -10 -10 -9 -9 ------- Run | Yrd Mat Min Mat Min Traps Triggered 1 | . . . 1 . Indirectly . | . . . . . Trap Hack Attempts . | . . . . . Triggered . | . . . . . Disarmed . | . . . . . Reprogrammed . | . . . . . Reused . | . . . . . Traps Extracted . | . . . . . Installed . | . . . . . Triggered . | . . . . . Machines | -11 -10 -10 -9 -9 ---------- Run | Yrd Mat Min Mat Min Machines Disabled 2 | . . . 2 . Max in Single Turn . | . . . . . Machines Repaired . | . . . . . Machines Dismantled . | . . . . . Machines Sabotaged . | . . . . . Overloaded Fab Kills . | . . . . . Hacking | -11 -10 -10 -9 -9 --------- Run | Yrd Mat Min Mat Min Machines Accessed 2 | . 1 . 1 . Terminals 1 | . 1 . . . Fabricators . | . . . . . Repair Stations . | . . . . . Recycling Units 1 | . . . 1 . Scanalyzers . | . . . . . Garrison Access . | . . . . . Total Hacks 4 | . 3 . 1 . Successful 1 | . . . 1 . Failed 3 | . 3 . . . Catastrophic 1 | . 1 . . . Database Lockouts . | . . . . . Manual 3 | . 3 . . . Terminals 3 | . 3 . . . Fabricators . | . . . . . Repair Stations . | . . . . . Recycling Units 1 | . . . 1 . Scanalyzers . | . . . . . Garrison Access . | . . . . . Terminal Hacks . | . . . . . Fabricator Hacks . | . . . . . Repair Station Hacks . | . . . . . Recycling Unit Hacks 1 | . . . 1 . Report Inventory 1 | . . . 1 . Scanalyzer . | . . . . . Garrison Access Hacks . | . . . . . Unauthorized Hacks . | . . . . . Terminals . | . . . . . Fabricators . | . . . . . Repair Stations . | . . . . . Recycling Units . | . . . . . Scanalyzers . | . . . . . Garrison Access . | . . . . . Data Cores Recovered . | . . . . . Used . | . . . . . Hacking Detections 1 | . 1 . . . Full Trace Events . | . . . . . Feedback Events . | . . . . . Feedback Blocked . | . . . . . Robot Schematics Acquired . | . . . . . Robots Built . | . . . . . Authchips . | . . . . . Time . | . . . . . Total Robot Build Rating . | . . . . . Part Schematics Acquired . | . . . . . Parts Built . | . . . . . Authchips . | . . . . . Time . | . . . . . Total Part Build Rating . | . . . . . Part Studies Acquired . | . . . . . Parts Repaired . | . . . . . Time . | . . . . . Parts Recycled . | . . . . . Recycled Matter . | . . . . . Retrieved Matter . | . . . . . Retrieved Components . | . . . . . Parts Scanalyzed . | . . . . . Part Schematics Acquired . | . . . . . Parts Damaged . | . . . . . Bothacking | -11 -10 -10 -9 -9 ------------ Run | Yrd Mat Min Mat Min Used RIF Installer . | . . . . . Robots Hacked . | . . . . . Non-combat . | . . . . . Combat . | . . . . . Robot Hacks Applied . | . . . . . Relay Couplers Released . | . . . . . Fabnet Peak Effective % . | . . . . . Robots Rewired . | . . . . . Allies Hacked . | . . . . . Hacks Repelled . | . . . . . Allies | -11 -10 -10 -9 -9 -------- Run | Yrd Mat Min Mat Min Total Allies 2 | . . 2 . . Largest Group 2 | . . 2 2 . Highest-Rated Group 41 | . . 41 41 . Highest-Rated Ally 31 | . . 31 31 . Total Orders . | . . . . . Ally Attacks 32 | . . . 32 . Total Damage 339 | . . . 339 . Kills 4 | . . . 4 . Allies Corrupted . | . . . . . Allies Melted . | . . . . . Intel | -11 -10 -10 -9 -9 ------- Run | Yrd Mat Min Mat Min Active Infowar (turns) . | . . . . . Robot Analysis Total . | . . . . . Derelict Logs Recovered 3 | . . 1 . 2 Drone Launches . | . . . . . Drone Recoveries . | . . . . . Exploration | -11 -10 -10 -9 -9 ------------- Run | Yrd Mat Min Mat Min Turns Passed 1437 | 63 316 159 576 323 Spaces Moved 867 | 41 196 128 310 192 Core 19 | 12 . . . 7 Treads . | . . . . . Legs 848 | 29 196 128 310 185 Wheels . | . . . . . Hover . | . . . . . Flight . | . . . . . Fastest Speed 50 | 50 120 120 120 100 Average Speed 121 | 132 120 120 120 122 Slowest Speed 250 | 250 120 120 120 190 Overloaded Moves . | . . . . . Propulsion Burnouts . | . . . . . Robots Hopped . | . . . . . Potential Cave-ins . | . . . . . Cave-ins Triggered . | . . . . . Exploration Rate (%) 25 | 3 23 32 31 37 Regions Visited 4 Branch Regions 2 Pre-discovered Areas 1 | . . 1 . . Known Exits Taken . | . . . . . Unknown Exits Taken 4 | 1 1 1 1 . Scrap Searched 1 | . . 1 . . Spaces Dug . | . . . . . Terrain Destroyed 79 | . . . . 79 Melee . | . . . . . Projectile . | . . . . . AOE 79 | . . . . 79 Terrain Rammed . | . . . . . Walls Destroyed . | . . . . . Machines Disabled . | . . . . . Actions | -11 -10 -10 -9 -9 --------- Run | Yrd Mat Min Mat Min Total 1099 | 47 258 133 423 238 Wait 112 | . 51 6 51 4 Move 863 | 40 195 127 309 192 Hop . | . . . . . Pick Up 8 | 1 2 . 4 1 Fast Attach 7 | 6 1 . . . Attach 5 | . . . 3 2 Detach . | . . . . . Swap 9 | . . . 6 3 Drop 5 | . . . 4 1 Fire 80 | . 9 . 46 25 Melee . | . . . . . Ram 4 | . . . . 4 Kick 6 | . . . . 6 Crush . | . . . . . Escape Stasis . | . . . . . Rewire . | . . . . . Trap . | . . . . . Miscellaneous . | . . . . . Route ------- -11/Scrapyard -10/Materials -10/Mines -9/Materials -9/Mines History --------- Turn | Location | Event 17 | -11/Scrapyard | Discovered new exit (range 16) 64 | -11/Scrapyard | Entered Materials 183 | -10/Materials | Discovered new exit (range 12) 305 | -10/Materials | Build established: Mutant 380 | -10/Materials | Entered Mines 413 | -10/Mines | Learned location of Zion (-6) 476 | -10/Mines | Discovered new exit (range 16) 527 | -10/Mines | A weapon hastily lodged in a ceiling crevice suddenly fell to the ground 539 | -10/Mines | Entered Materials 539 | -9/Materials | Accompanied by 2 allies 539 | -9/Materials | Evolved 2 slots: Propulsion x2 544 | -9/Materials | Led the pair of lost Derelicts to an unsafe place 1045 | -9/Materials | Discovered new exit (range 10) 1115 | -9/Materials | Entered Mines 1150 | -9/Mines | Received a Rocket Launcher from a helpful Derelict 1192 | -9/Mines | Learned Materials stockpile data 1216 | -9/Mines | Learned location of 1 exit from Materials 1233 | -9/Mines | Assembled infested the area 1283 | -9/Mines | Build established: Scavenger-Mutant 1319 | -9/Mines | Core integrity fell below 50% 1333 | -9/Mines | Core integrity fell below 20% 1362 | -9/Mines | Lost 4 parts (3n1w) 1416 | -9/Mines | System corruption reached 10% 1438 | -9/Mines | Destroyed by as-97201 with Assembled Maul Last Messages --------------- Kicked as-97201. K-01 Serf collects debris. U-05 Engineer builds a Wall. Kicked as-97201. Power Shielding destroyed. System corrupted by crushing effect (+4). Kicked as-97201 out of the way. IR4EEV%OC%3| BFSNHTR=H9A K-01 Serf collects debris. Knocked back. The unstable cave ceiling collapses. Aluminum Leg destroyed. System corrupted by crushing effect (+3). Knocked back. The unstable cave ceiling collapses. Slammed into as-97201. The unstable cave ceiling collapses. Slammed into as-97201. The unstable cave ceiling collapses. Slammed into as-97201. Map ----- +----------------------------------------------------+ | ???????????????????????????????????????? | | ?????????????????????????????????####### | | ?????????????????????????????????# | | ?????????????????????????????????# | | ?????????????????????????????????# #### | | ?????????????????????????????????# #??? | | ?????????????????????????????????# ##?? | | ??????????????????????????####??## ### | | ??????????????????######### #### | | ??????????????????# | | ??????????????????# ##### ### | | ?????????????###### #???### #?? | | ?????????????# #?????## #?? | | ?????????????# #??????# #?? | | ?????????????# r######?????# #? | | ????????????## ###????????# #? | | ????????????# % # #####????# #? | | ????????????# ## # #????## # | | ????????????# % #?????## | | ????????????# # # ###### """ | | ???????????## # ## """ | | ???????????# ##### # """ | | ???????????# ## ?? | | ??????##??#### # ## ??#### ? | | ?????## ### a ## # #????????? | | ?????# # # @ # #????????? | | ?????# ### # #????????? | | ?????## [ # # #????????? | | ??????# ## ## # #????????? | | ??????# ### # ####????????? | | ??????## ## ##?????????? | | ???????#### # #####??????????? | | ?????????# # #??????????????? | | ?????????# # #??????????????? | | ?????????# % ??????????????? | | ????????? # ??????????????? | | ???????? % # # #?????????????? | | ???????" # #?????????????? | | ?????? ### # ## # #?????????????? | | ????? ??? # #?????????????? | | ?????? ???# ??????????????? | | ???????? ???? ? ? ????????????????? | | ?????????? ????#?? ????????????????????? | | ???????????????????????????????????????? | | ???????????????????????????????????????? | | ???????????????????????????????????????? | | ???????????????????????????????????????? | | ???????????????????????????????????????? | | ???????????????????????????????????????? | | ???????????????????????????????????????? | +----------------------------------------------------+ Best States ------------- Heat Dissipation 28 Energy Generation 14 Energy Capacity 250 Matter Stores 300 Matter Capacity 300 Sight Range 16 Terrain Scan Density 10 Power Shielding 33 Evasion (%) 55 Item Schematics ----------------- None Robot Schematics ------------------ None Fabricated ------------ Nothing Repaired ---------- Nothing Studied --------- None Alien Tech Used ----------------- None Achievements -------------- None Challenges ------------ None Game ------ Seed DeuteriumTransportShovel Manual? 0 Play Time 00:18:33 Cumulative 14.1 hours Start 2025.11.23 @ 21:13:51 End 2025.11.23 @ 21:49:02 Sessions 1 Manual Loads 0 Difficulty Rogue Special Mode None Game No. 22 Rogue 22 Adventurer 0 Explorer 0 Win Type - Total 0 Types 0/0/0/0/0/0/0/0/0/0 Lore% 5 Gallery% 16 Achievement% 15 Wizard Run 0 Options --------- Layout 1 ASCII 0 Keyboard 0 Movement Arrows Keybinds 0 Fullscreen 1 Font 32/SmallcapsGlow Map View 50x35 Zoom Use 11% Tactical HUD 0 Map Filters NONE Filters NONE Steam 1 RUN: 7757c3e7-5e2a-47f9-8b55-66e830f1d63f